bitfinex/quotes_BTCUSD_20241014
["timestamp","ask_amount","ask_price","bid_price","bid_amount"]
[1728949216296,0.45316614,66181.0,66180.0,0.56804483]
[1728949216807,0.14853767,66181.0,66180.0,0.56804483]
[1728949217062,0.03440073,66181.0,66180.0,0.57304483]
[1728949217543,0.09223044,66181.0,66180.0,0.57304483]
[1728949217754,0.08223044,66181.0,66180.0,0.57304483]
[1728949217970,0.10636497,66181.0,66180.0,0.57304483]
[1728949218183,0.21636497,66181.0,66180.0,0.57304483]
[1728949218372,0.20636497,66181.0,66180.0,0.57304483]
[1728949218610,0.12440073,66181.0,66180.0,0.57304483]
[1728949218764,0.14153348,66181.0,66180.0,0.57304483]
[1728949218997,0.14153371,66181.0,66180.0,0.57304483]
[1728949219473,0.35046342,66181.0,66180.0,0.57304483]
[1728949219786,0.35346342,66181.0,66180.0,0.56804483]
[1728949220192,0.35345729,66181.0,66180.0,0.56804483]
[1728949220405,0.28563371,66181.0,66180.0,0.56804483]
[1728949220841,0.37606324,66181.0,66180.0,0.56804483]
[1728949221919,0.22496324,66181.0,66180.0,0.56804483]
[1728949222342,0.22496324,66181.0,66180.0,0.57304483]
[1728949222545,0.13453371,66181.0,66180.0,0.57304483]
[1728949222759,0.3534585,66181.0,66180.0,0.56804483]
[1728949222982,0.28563006,66181.0,66180.0,0.56804483]
[1728949223208,0.37605959,66181.0,66180.0,0.56804483]
[1728949223668,0.52958806,66181.0,66180.0,0.56804483]
[1728949223900,0.4250292,66181.0,66180.0,0.56804483]
[1728949224138,0.51546825,66181.0,66180.0,0.56804483]
[1728949226955,0.51550008,66181.0,66180.0,0.56804483]
[1728949228112,0.4250292,66181.0,66180.0,0.56639994]
[1728949230165,0.51550008,66181.0,66180.0,0.56639994]
[1728949230646,0.4250292,66181.0,66180.0,0.56639994]
[1728949231331,0.51550008,66181.0,66180.0,0.56639994]
[1728949231811,0.4250292,66181.0,66180.0,0.56639994]
[1728949232015,0.50793317,66181.0,66180.0,0.53966859]
[1728949232299,0.41746229,66181.0,66180.0,0.26566859]
[1728949232518,0.50795203,66181.0,66180.0,0.26566859]
[1728949232732,0.50795362,66181.0,66180.0,0.26566859]
[1728949232951,0.41746229,66181.0,66180.0,0.26566859]
[1728949233223,0.48533548,66181.0,66180.0,0.31983545]
[1728949233450,0.41746229,66181.0,66180.0,0.31983545]
[1728949234163,0.50795376,66181.0,66180.0,0.31983545]
[1728949235063,0.50795376,66181.0,66180.0,0.26566859]
[1728949235277,0.53055089,66181.0,66180.0,0.26566859]
[1728949236899,0.41746229,66181.0,66180.0,0.26566859]
[1728949237119,0.53055089,66181.0,66180.0,0.26566859]
[1728949237573,0.35684908,66181.0,66180.0,0.34336859]
[1728949237791,0.35684908,66181.0,66180.0,0.39853545]
[1728949238005,0.26636229,66181.0,66180.0,0.39853545]
[1728949238199,0.37945089,66181.0,66180.0,0.39853545]
[1728949238612,0.26636229,66181.0,66180.0,0.39853545]
[1728949240147,0.52986958,66181.0,66180.0,0.39853545]
[1728949241040,0.62034313,66181.0,66180.0,0.39853545]
[1728949241507,0.37876958,66181.0,66180.0,0.39853545]
[1728949243043,0.52986958,66181.0,66180.0,0.39853545]
[1728949243257,0.37876958,66181.0,66180.0,0.39853545]
[1728949244366,0.52986958,66181.0,66180.0,0.39853545]
[1728949244850,0.64295236,66181.0,66180.0,0.39853545]
[1728949245302,0.37876958,66181.0,66180.0,0.39853545]
[1728949245694,0.64295236,66181.0,66180.0,0.39853545]
[1728949245979,0.37876958,66181.0,66180.0,0.39853545]
[1728949246214,0.26636229,66181.0,66180.0,0.39853545]
[1728949247755,0.35681978,66181.0,66180.0,0.39853545]
[1728949247967,0.50791978,66181.0,66180.0,0.39853545]
[1728949248396,0.41746229,66181.0,66180.0,0.39853545]
[1728949248837,0.53054507,66181.0,66180.0,0.39853545]
[1728949249434,0.41746229,66181.0,66180.0,0.39853545]
[1728949250035,0.53054927,66181.0,66180.0,0.39853545]
[1728949250254,0.41746229,66181.0,66180.0,0.39853545]
[1728949251350,0.46093899,66181.0,66180.0,0.39853545]
[1728949251780,0.41746229,66181.0,66180.0,0.39853545]
[1728949252232,0.57335002,66181.0,66180.0,0.26566859]
[1728949255594,0.70913196,66181.0,66180.0,0.26566859]
[1728949256740,0.52986958,66181.0,66180.0,0.25434226]
[1728949257007,0.52986958,66181.0,66180.0,0.19027612]
[1728949258372,0.55286958,66181.0,66180.0,0.19027612]
[1728949258609,0.85653463,66181.0,66180.0,0.19027612]
[1728949259494,0.85053463,66181.0,66180.0,0.19027612]
[1728949259723,0.86053463,66181.0,66180.0,0.19027612]
[1728949259926,0.87053463,66181.0,66180.0,0.19027612]
[1728949260156,0.75812734,66181.0,66180.0,0.19027612]
[1728949260391,0.58733463,66181.0,66180.0,0.20930373]
[1728949260606,0.54386958,66181.0,66180.0,0.19027612]
[1728949263361,0.56686958,66181.0,66180.0,0.19027612]
[1728949263704,0.61028969,66181.0,66180.0,0.19027612]
[1728949263804,0.79368969,66181.0,66180.0,0.19027612]
[1728949264532,0.49893758,66171.0,66170.0,0.000826]
[1728949264759,0.65246605,66171.0,66170.0,0.000826]
[1728949264983,0.6576269,66171.0,66170.0,0.454196]
[1728949265881,0.60863473,66171.0,66170.0,0.454196]
[1728949266371,0.43281232,66171.0,66170.0,0.5074756]
[1728949266612,0.60863473,66171.0,66170.0,0.5074756]
[1728949266896,0.61863473,66171.0,66170.0,0.5074756]
[1728949267400,0.62863473,66171.0,66170.0,0.5074756]
[1728949267609,0.62863473,66171.0,66170.0,0.454196]
[1728949268370,0.74907881,66171.0,66170.0,0.454196]
[1728949269901,0.73907881,66171.0,66170.0,0.454196]
[1728949270291,0.63021131,66171.0,66170.0,0.454196]
[1728949270932,0.62921131,66171.0,66170.0,0.454196]
[1728949271367,0.64221131,66171.0,66170.0,0.454196]
[1728949273930,0.64421131,66171.0,66170.0,0.454196]
[1728949274357,0.64221131,66171.0,66170.0,0.454196]
[1728949275772,0.251144,66162.0,66161.0,0.0005]
[1728949275994,0.75631729,66162.0,66161.0,0.0005]
[1728949276218,0.76144668,66162.0,66161.0,0.0005]
[1728949276460,0.78444668,66162.0,66161.0,0.0005]
[1728949276674,0.60862427,66162.0,66161.0,0.0005]
[1728949276887,0.78444668,66162.0,66161.0,0.0005]
[1728949277347,0.79444668,66162.0,66161.0,0.0005]
[1728949277555,0.8732085,66162.0,66161.0,0.0005]
[1728949277777,0.82812198,66162.0,66161.0,0.0005]
[1728949278686,0.88102618,66162.0,66161.0,0.0005]
[1728949279186,0.83596776,66162.0,66161.0,0.0005]
[1728949279403,0.88100773,66162.0,66161.0,0.0005]
[1728949279622,0.83596776,66162.0,66161.0,0.0005]
[1728949279835,0.88100773,66162.0,66161.0,0.0005]
[1728949280281,0.83596776,66162.0,66161.0,0.0005]
[1728949280737,0.90551849,66162.0,66161.0,0.0005]
[1728949280955,0.89551849,66162.0,66161.0,0.0005]
[1728949281183,0.82596776,66162.0,66161.0,0.0005]
[1728949281403,0.83996776,66162.0,66161.0,0.0005]
[1728949282318,0.89751849,66162.0,66161.0,0.0005]
[1728949282829,0.88351849,66162.0,66161.0,0.0005]
[1728949283066,0.89751849,66162.0,66161.0,0.0005]
[1728949283279,0.84396776,66162.0,66161.0,0.0005]
[1728949283493,0.84596776,66162.0,66161.0,0.0005]
[1728949284658,0.84396776,66162.0,66161.0,0.0005]
[1728949285567,0.91151849,66162.0,66161.0,0.0005]
[1728949285789,0.84396776,66162.0,66161.0,0.0005]
[1728949286004,0.71739808,66162.0,66161.0,0.0005]
[1728949286463,0.83015536,66162.0,66161.0,0.0005]
[1728949286958,0.71739808,66162.0,66161.0,0.0005]
[1728949288085,0.61895098,66162.0,66161.0,0.001326]
[1728949288550,0.73148855,66162.0,66161.0,0.001326]
[1728949288780,0.48341341,66162.0,66161.0,0.001326]
[1728949289047,0.55094718,66162.0,66161.0,0.076426]
[1728949289227,0.48341341,66162.0,66161.0,0.10457186]
[1728949289504,0.48341341,66162.0,66161.0,0.74641186]
[1728949290485,0.48341341,66162.0,66161.0,0.718266]
[1728949292724,0.48342806,66162.0,66161.0,0.718266]
[1728949293176,0.52846446,66162.0,66161.0,0.718266]
[1728949293391,0.47558228,66162.0,66161.0,0.718266]
[1728949293604,0.45190698,66162.0,66161.0,0.718266]
[1728949293830,0.45190698,66162.0,66161.0,0.79175586]
[1728949295212,0.43790698,66162.0,66161.0,0.718266]
[1728949295653,0.44690698,66162.0,66161.0,0.718266]
[1728949296056,0.43790698,66162.0,66161.0,0.718266]
[1728949296280,0.42391721,66162.0,66161.0,0.718266]
[1728949296498,0.42691721,66162.0,66161.0,0.718266]
[1728949296721,0.43591721,66162.0,66161.0,0.718266]
[1728949296934,0.42691721,66162.0,66161.0,0.79175586]
[1728949297158,0.42991721,66162.0,66161.0,0.79175586]
[1728949300293,0.42990626,66162.0,66161.0,0.79175586]
[1728949300960,0.02523379,66162.0,66161.0,0.79675586]
[1728949301188,0.02523379,66162.0,66161.0,0.94790186]
[1728949301189,0.0201044,66162.0,66161.0,0.94790186]
[1728949301433,0.0201044,66162.0,66161.0,0.79675586]
[1728949301653,0.0171044,66162.0,66161.0,0.79675586]
[1728949301922,0.0223349,66162.0,66161.0,0.79675586]
[1728949302146,0.0253349,66162.0,66161.0,0.79675586]
[1728949302587,0.0223349,66162.0,66161.0,0.79675586]
[1728949302805,0.0193349,66162.0,66161.0,0.79675586]
[1728949303350,0.0193349,66162.0,66161.0,0.94790186]
[1728949303562,0.0141044,66162.0,66161.0,0.94790186]
[1728949305079,0.0141044,66162.0,66161.0,0.95790186]
[1728949305403,0.0141044,66162.0,66161.0,0.95990186]
[1728949305853,0.0141044,66162.0,66161.0,0.95790186]
[1728949311291,0.0141044,66162.0,66161.0,0.79675586]
[1728949311910,0.01936076,66162.0,66161.0,0.79675586]
[1728949312114,0.03343068,66162.0,66161.0,0.80675586]
[1728949312339,0.03339617,66162.0,66161.0,0.80675586]
[1728949313178,0.02813981,66162.0,66161.0,0.80675586]
[1728949315487,0.03339309,66162.0,66161.0,0.80675586]
[1728949315706,0.02813981,66162.0,66161.0,0.80675586]
[1728949316347,0.03,66163.0,66162.0,0.015]
[1728949316577,0.03,66163.0,66162.0,0.73060336]
[1728949316805,0.0581581,66163.0,66162.0,0.80860336]
[1728949317032,0.3092991,66163.0,66162.0,0.81965936]
[1728949317254,0.31168657,66163.0,66162.0,0.70863]
[1728949317475,0.46282757,66163.0,66162.0,0.70863]
[1728949317695,0.46282984,66163.0,66162.0,0.70863]
[1728949317924,0.46282984,66163.0,66162.0,0.71363]
[1728949318141,0.29760752,66163.0,66162.0,0.71363]
[1728949318360,0.44874852,66163.0,66162.0,0.78624907]
[1728949318792,0.29760752,66163.0,66162.0,0.78624907]
[1728949322183,0.31170462,66163.0,66162.0,0.78624907]
[1728949323088,0.31173091,66163.0,66162.0,0.78624907]
[1728949323543,0.46287191,66163.0,66162.0,0.78624907]
[1728949323765,0.31173091,66163.0,66162.0,0.78624907]
[1728949325639,0.31173091,66163.0,66162.0,0.78124907]
[1728949326747,0.31173091,66163.0,66162.0,0.78624907]
[1728949327409,0.31173885,66163.0,66162.0,0.78624907]
[1728949329063,0.06344352,66163.0,66162.0,0.94739307]
[1728949329537,0.05821038,66163.0,66162.0,0.94739307]
[1728949329753,0.05821038,66163.0,66162.0,1.05986439]
[1728949329984,0.05821038,66163.0,66162.0,0.94739307]
[1728949330208,0.05821038,66163.0,66162.0,1.05986439]
[1728949330677,0.05821038,66163.0,66162.0,0.94739307]
[1728949330917,0.03,66163.0,66162.0,0.94739307]
[1728949331146,0.05822844,66163.0,66162.0,0.94739307]
[1728949331598,0.05922844,66163.0,66162.0,0.94739307]
[1728949333159,0.06022844,66163.0,66162.0,0.95039307]
[1728949333603,0.06022844,66163.0,66162.0,0.95239307]
[1728949334744,0.04611422,66163.0,66162.0,0.95239307]
[1728949334973,0.06022318,66163.0,66162.0,0.95039307]
[1728949335682,0.04611422,66163.0,66162.0,0.95039307]
[1728949336145,0.0602211,66163.0,66162.0,0.95321807]
[1728949336388,0.0602211,66163.0,66162.0,0.95121807]
[1728949337087,0.032,66163.0,66162.0,0.95121807]
[1728949337768,0.04610557,66163.0,66162.0,0.95121807]
[1728949339066,0.04610557,66163.0,66162.0,0.95321807]
[1728949339316,0.032,66163.0,66162.0,0.95321807]
[1728949339762,0.032,66163.0,66162.0,0.95121807]
[1728949340395,0.046105,66163.0,66162.0,0.95321807]
[1728949340613,0.032,66163.0,66162.0,0.95321807]
[1728949343089,0.002,66163.0,66162.0,0.95321807]
[1728949343759,0.002,66163.0,66162.0,1.10674654]
[1728949343982,0.002,66163.0,66162.0,0.95121807]
[1728949345062,0.002,66163.0,66162.0,0.95321807]
[1728949345333,0.002,66163.0,66162.0,1.21721786]
[1728949345549,0.002,66163.0,66162.0,1.21921786]
[1728949345767,0.002,66163.0,66162.0,1.21721786]
[1728949346457,0.001,66163.0,66162.0,1.21621786]
[1728949346695,0.001652,66170.0,66169.0,0.409228]
[1728949346916,0.01573909,66170.0,66169.0,0.97453581]
[1728949347594,0.02982032,66170.0,66169.0,0.97453581]
[1728949349149,0.03082032,66170.0,66169.0,0.98153581]
[1728949349577,0.03182032,66170.0,66169.0,0.98853581]
[1728949349804,0.01773909,66170.0,66169.0,0.98853581]
[1728949351177,0.003652,66170.0,66169.0,0.98853581]
[1728949351436,0.03180256,66170.0,66169.0,0.98853581]
[1728949352133,0.03180256,66170.0,66169.0,0.82740781]
[1728949352575,0.03180256,66170.0,66169.0,0.97853581]
[1728949353229,0.03180256,66170.0,66169.0,0.97773581]
[1728949353436,0.03180256,66170.0,66169.0,0.97763581]
[1728949353893,0.03180256,66170.0,66169.0,0.97753581]
[1728949354116,0.03180256,66170.0,66169.0,0.97673581]
[1728949354331,0.03180256,66170.0,66169.0,0.97663581]
[1728949354786,0.03180256,66170.0,66169.0,0.97653581]
[1728949355009,0.03180256,66170.0,66169.0,0.97593581]
[1728949355282,0.03180256,66170.0,66169.0,0.97583581]
[1728949355541,0.03180256,66170.0,66169.0,0.97553581]
[1728949355757,0.03180256,66170.0,66169.0,0.97533581]
[1728949355949,0.03180256,66170.0,66169.0,0.97503581]
[1728949356183,0.03181442,66170.0,66169.0,0.97503581]
[1728949356410,0.03181442,66170.0,66169.0,0.97453581]
[1728949356636,0.03181442,66170.0,66169.0,0.82320781]
[1728949356861,0.03181442,66170.0,66169.0,0.97403581]
[1728949357308,0.03181442,66170.0,66169.0,0.97353581]
[1728949359119,0.03181442,66170.0,66169.0,0.82240781]
[1728949359799,0.03181442,66170.0,66169.0,0.65490781]
[1728949360009,0.03737132,66170.0,66169.0,0.65490781]
[1728949360215,0.03181442,66170.0,66169.0,0.65573281]
[1728949362796,0.01775429,66170.0,66169.0,0.65573281]
[1728949363031,0.03185658,66170.0,66169.0,0.80686081]
[1728949363264,0.03185658,66170.0,66169.0,0.65573281]
[1728949364111,0.03185658,66170.0,66169.0,0.80686081]
[1728949368349,0.03185658,66170.0,66169.0,0.65573281]
[1728949369723,0.16887929,66170.0,66169.0,0.65573281]
[1728949369948,0.17504461,66170.0,66169.0,0.468205]
[1728949371138,0.22011504,66170.0,66169.0,0.468205]
[1728949371581,0.17504461,66170.0,66169.0,0.468205]
[1728949371806,0.17504461,66170.0,66169.0,0.5155255]
[1728949372024,0.2201222,66170.0,66169.0,0.5155255]
[1728949372470,0.17504461,66170.0,66169.0,0.5155255]
[1728949372617,0.22012837,66170.0,66169.0,0.5155255]
[1728949373199,0.17504461,66170.0,66169.0,0.5155255]
[1728949373403,0.22012666,66170.0,66169.0,0.5155255]
[1728949373605,0.17504461,66170.0,66169.0,0.5155255]
[1728949374490,0.24264009,66170.0,66169.0,0.5155255]
[1728949376731,0.27503445,66170.0,66169.0,0.5155255]
[1728949376946,0.34267052,66170.0,66169.0,0.5155255]
[1728949377830,0.27503445,66170.0,66169.0,0.5155255]
[1728949378059,0.34266652,66170.0,66169.0,0.5155255]
[1728949378284,0.34266311,66170.0,66169.0,0.5155255]
[1728949378523,0.32857904,66170.0,66169.0,0.5155255]
[1728949379027,0.32857427,66170.0,66169.0,0.5155255]
[1728949379262,0.26094232,66170.0,66169.0,0.5155255]
[1728949379703,0.34266389,66170.0,66169.0,0.5155255]
[1728949380722,0.27503194,66170.0,66169.0,0.5155255]
[1728949381128,0.27503077,66170.0,66169.0,0.5155255]
[1728949382092,0.32010938,66170.0,66169.0,0.5155255]
[1728949382579,0.32010878,66170.0,66169.0,0.5155255]
[1728949384961,0.34264696,66170.0,66169.0,0.5155255]
[1728949385457,0.27503077,66170.0,66169.0,0.5155255]
[1728949386003,0.34263751,66170.0,66169.0,0.5155255]
[1728949386206,0.27503077,66170.0,66169.0,0.5155255]
[1728949387272,0.32010004,66170.0,66169.0,0.5155255]
[1728949387449,0.27503077,66170.0,66169.0,0.5155255]
[1728949388931,0.27503134,66170.0,66169.0,0.5155255]
[1728949389375,0.27503214,66170.0,66169.0,0.5155255]
[1728949390329,0.34263061,66170.0,66169.0,0.5155255]
[1728949390549,0.34263177,66170.0,66169.0,0.5155255]
[1728949391394,0.27503214,66170.0,66169.0,0.5155255]
[1728949392548,0.34263057,66170.0,66169.0,0.468205]
[1728949393028,0.0239081,66170.0,66169.0,0.874433]
[1728949393263,0.03800005,66170.0,66169.0,0.872433]
[1728949393492,0.03183473,66170.0,66169.0,0.872433]
[1728949393719,0.03183473,66170.0,66169.0,1.0201289]
[1728949394426,0.03183473,66170.0,66169.0,1.0221289]
[1728949394641,0.03183473,66170.0,66169.0,1.0201289]
[1728949395000,0.03798771,66170.0,66169.0,0.8690009]
[1728949395182,0.03798771,66170.0,66169.0,1.0201289]
[1728949395593,0.15045903,66170.0,66169.0,0.8690009]
[1728949395835,0.25045903,66170.0,66169.0,0.721305]
[1728949396258,0.40158403,66170.0,66169.0,0.721305]
[1728949396714,0.3734013,66170.0,66169.0,0.721305]
[1728949396899,0.40158865,66170.0,66169.0,0.721305]
[1728949397093,0.25046365,66170.0,66169.0,0.721305]
[1728949397296,0.25046365,66170.0,66169.0,0.7934355]
[1728949400492,0.03799233,66170.0,66169.0,0.7934355]
[1728949401340,0.18911733,66170.0,66169.0,0.7934355]
[1728949401562,0.33418786,66170.0,66169.0,0.6248355]
[1728949402065,0.26092998,66170.0,66169.0,0.547705]
[1728949402273,0.27502795,66170.0,66169.0,0.468205]
[1728949402477,0.33419648,66170.0,66169.0,0.468205]
[1728949403131,0.33419648,66170.0,66169.0,0.5403355]
[1728949403370,0.32009851,66170.0,66169.0,0.5403355]
[1728949403579,0.28911958,66170.0,66169.0,0.5403355]
[1728949406066,0.35643136,66170.0,66169.0,0.5403355]
[1728949406298,0.64486841,66170.0,66169.0,0.468205]
[1728949406542,0.6449302,66170.0,66169.0,0.468205]
[1728949406759,0.57879105,66170.0,66169.0,0.468205]
[1728949406965,0.45222173,66170.0,66169.0,0.468205]
[1728949407171,0.45222173,66170.0,66169.0,0.5229755]
[1728949407398,0.23528219,66170.0,66169.0,0.6645755]
[1728949407610,0.27302158,66170.0,66169.0,0.7405755]
[1728949407817,0.28704999,66170.0,66169.0,0.7425755]
[1728949408029,0.28704999,66170.0,66169.0,0.7445755]
[1728949408255,0.03592499,66170.0,66169.0,0.7455755]
[1728949408718,0.03586881,66170.0,66169.0,0.7475755]
[1728949409175,0.03586881,66170.0,66169.0,0.7455755]
[1728949410102,0.03586881,66170.0,66169.0,0.7485755]
[1728949410550,0.03586881,66170.0,66169.0,1.05923197]
[1728949410551,0.03686881,66170.0,66169.0,1.05923197]
[1728949410775,0.03786881,66170.0,66169.0,1.06723197]
[1728949410997,0.03171583,66170.0,66169.0,1.06523197]
[1728949411237,0.03172663,66170.0,66169.0,1.06523197]
[1728949411476,0.03072663,66170.0,66169.0,1.05823197]
[1728949411908,0.03172663,66170.0,66169.0,1.06723197]
[1728949412120,0.03172663,66170.0,66169.0,1.06923197]
[1728949412551,0.0317162,66170.0,66169.0,1.06923197]
[1728949413002,0.03171631,66170.0,66169.0,1.06923197]
[1728949413247,0.03071631,66170.0,66169.0,1.06123197]
[1728949413679,0.03071631,66170.0,66169.0,1.07323197]
[1728949413886,0.03171631,66170.0,66169.0,1.07123197]
[1728949414741,0.03171631,66170.0,66169.0,1.07323197]
[1728949415602,0.03171631,66170.0,66169.0,1.07123197]
[1728949416438,0.03172414,66170.0,66169.0,1.07323197]
[1728949417256,0.03172414,66170.0,66169.0,1.07123197]
[1728949417687,0.03173181,66170.0,66169.0,1.07323197]
[1728949417905,0.01769201,66170.0,66169.0,1.07323197]
[1728949418321,0.01769201,66170.0,66169.0,1.07123197]
[1728949419079,0.01769298,66170.0,66169.0,1.07123197]
[1728949419962,0.03173459,66170.0,66169.0,1.07123197]
[1728949420177,0.03173459,66170.0,66169.0,0.9177035]
[1728949420415,0.0317346,66170.0,66169.0,0.9177035]
[1728949421053,0.0317346,66170.0,66169.0,0.9197035]
[1728949421268,0.0317346,66170.0,66169.0,0.9177035]
[1728949421689,0.0317346,66170.0,66169.0,0.9197035]
[1728949422312,0.0317346,66170.0,66169.0,0.9177035]
[1728949423196,0.0317346,66170.0,66169.0,0.9197035]
[1728949424515,0.01769298,66170.0,66169.0,0.9197035]
[1728949424965,0.01768467,66170.0,66169.0,0.9197035]
[1728949424967,0.01768467,66170.0,66169.0,1.18570329]
[1728949425888,0.01768467,66170.0,66169.0,1.18370329]
[1728949426117,0.01768467,66170.0,66169.0,1.18570329]
[1728949426362,0.01768467,66170.0,66169.0,1.18370329]
[1728949426599,0.01768467,66170.0,66169.0,1.18570329]
[1728949428293,0.001652,66181.0,66180.0,0.387703]
[1728949428294,0.22726171,66181.0,66180.0,0.387703]
[1728949428544,0.22726171,66181.0,66180.0,0.843013]
[1728949428788,0.001652,66181.0,66180.0,0.843013]
[1728949429354,0.001652,66181.0,66180.0,0.851013]
[1728949429599,0.002652,66181.0,66180.0,0.9057835]
[1728949429823,0.001652,66181.0,66180.0,0.8977835]
[1728949430050,0.002652,66181.0,66180.0,0.9117835]
[1728949430514,0.002652,66181.0,66180.0,0.9227835]
[1728949436375,0.153752,66181.0,66180.0,0.7716805]
[1728949436611,0.16007276,66181.0,66180.0,0.7716805]
[1728949436839,0.17409727,66181.0,66180.0,0.7716805]
[1728949437070,0.17409727,66181.0,66180.0,0.6207805]
[1728949437297,0.17409727,66181.0,66180.0,0.5400805]
[1728949438445,0.17409727,66181.0,66180.0,0.5260805]
[1728949438446,0.17309727,66181.0,66180.0,0.5260805]
[1728949438662,0.17309727,66181.0,66180.0,0.5330805]
[1728949439338,0.17309727,66181.0,66180.0,0.5200805]
[1728949439771,0.17309727,66181.0,66180.0,0.5260805]
[1728949440454,0.03602881,66181.0,66180.0,0.99845482]
[1728949440459,0.02200529,66181.0,66180.0,0.99845482]
[1728949440692,0.02200529,66181.0,66180.0,1.15998329]
[1728949440916,0.02200529,66181.0,66180.0,1.04751197]
[1728949440917,0.01568453,66181.0,66180.0,1.04751197]
[1728949441380,0.01568453,66181.0,66180.0,1.04551197]
[1728949441614,0.01568453,66181.0,66180.0,1.04051197]
[1728949442051,0.01568453,66181.0,66180.0,1.03451197]
[1728949442255,0.01568453,66181.0,66180.0,1.04051197]
[1728949443040,0.01568453,66181.0,66180.0,1.05451197]
[1728949445605,0.001652,66181.0,66180.0,1.06251197]
[1728949446254,0.00142535,66181.0,66180.0,1.06251197]
[1728949446702,0.0154535,66181.0,66180.0,1.06251197]
[1728949447039,0.01545347,66181.0,66180.0,1.06251197]
[1728949449486,0.01545347,66181.0,66180.0,1.06051197]
[1728949451098,0.01542671,66181.0,66180.0,1.06051197]
[1728949452426,0.01542671,66181.0,66180.0,1.06251197]
[1728949453792,0.01545376,66181.0,66180.0,1.06251197]
[1728949454016,0.01545376,66181.0,66180.0,1.06051197]
[1728949454017,0.00142535,66181.0,66180.0,1.06051197]
[1728949454239,0.01545506,66181.0,66180.0,1.06051197]
[1728949454747,0.01545991,66181.0,66180.0,1.06251197]
[1728949456028,0.00142535,66181.0,66180.0,1.06251197]
[1728949457332,0.01545439,66181.0,66180.0,1.06251197]
[1728949458968,0.00142535,66181.0,66180.0,1.06251197]
[1728949459191,0.01545479,66181.0,66180.0,1.06251197]
[1728949459872,0.01545479,66181.0,66180.0,0.91140897]
[1728949460126,0.4061909,66181.0,66180.0,0.7558805]
[1728949460363,0.18693587,66181.0,66180.0,0.5410805]
[1728949461050,0.18693587,66181.0,66180.0,0.5220805]
[1728949461275,0.3625484,66181.0,66180.0,0.5220805]
[1728949461529,0.3625484,66181.0,66180.0,0.5360805]
[1728949461762,0.3625484,66181.0,66180.0,0.5410805]
[1728949461976,0.3625484,66181.0,66180.0,0.5270805]
[1728949462204,0.3625484,66181.0,66180.0,0.5360805]
[1728949462519,0.3625484,66181.0,66180.0,0.5130805]
[1728949462760,0.3625484,66181.0,66180.0,0.5190805]
[1728949463229,0.53816093,66181.0,66180.0,0.5190805]
[1728949463668,0.3625484,66181.0,66180.0,0.5190805]
[1728949463902,0.29938566,66181.0,66180.0,0.5250805]
[1728949464340,0.29938566,66181.0,66180.0,0.5190805]
[1728949464704,0.29938566,66181.0,66180.0,0.5250805]
[1728949464913,0.29938566,66181.0,66180.0,0.5259055]
[1728949465720,0.29932336,66181.0,66180.0,0.5259055]
[1728949465920,0.29932336,66181.0,66180.0,0.5209055]
[1728949466351,0.69855183,66181.0,66180.0,0.00175823]
[1728949466588,0.85442928,66181.0,66180.0,0.00175823]
[1728949466801,0.91990162,66181.0,66180.0,0.00175823]
[1728949467437,0.91990162,66181.0,66180.0,0.454135]
[1728949467438,1.00942009,66181.0,66180.0,0.454135]
[1728949467663,1.01442009,66181.0,66180.0,0.4995485]
[1728949467862,1.14211523,66181.0,66180.0,0.4995485]
[1728949468287,1.05259676,66181.0,66180.0,0.4995485]
[1728949468491,1.05159676,66181.0,66180.0,0.4995485]
[1728949468729,1.06225061,66181.0,66180.0,0.4995485]
[1728949468969,1.04925384,66181.0,66180.0,0.454135]
[1728949469189,1.06323676,66181.0,66180.0,0.454135]
[1728949469396,1.06322282,66181.0,66180.0,0.454135]
[1728949470040,1.15273121,66181.0,66180.0,0.454135]
[1728949470275,1.15273121,66181.0,66180.0,0.4995485]
[1728949470485,1.06322282,66181.0,66180.0,0.4995485]
[1728949470705,1.06322282,66181.0,66180.0,0.454135]
[1728949470909,1.03022282,66181.0,66180.0,0.454135]
[1728949471786,1.09732448,66181.0,66180.0,0.454135]
[1728949472210,1.12032448,66181.0,66180.0,0.454135]
[1728949472416,1.13028927,66181.0,66180.0,0.454135]
[1728949473263,1.1302662,66181.0,66180.0,0.454135]
[1728949473470,1.06318761,66181.0,66180.0,0.454135]
[1728949474556,1.10785775,66181.0,66180.0,0.454135]
[1728949474767,1.06318761,66181.0,66180.0,0.454135]
[1728949474980,1.10785208,66181.0,66180.0,0.454135]
[1728949475196,1.06318761,66181.0,66180.0,0.454135]
[1728949475427,1.1078422,66181.0,66180.0,0.454135]
[1728949476249,1.06318761,66181.0,66180.0,0.454135]
[1728949477185,1.04922234,66181.0,66180.0,0.454135]
[1728949477614,1.11617225,66181.0,66180.0,0.454135]
[1728949479321,1.04922234,66181.0,66180.0,0.454135]
[1728949479549,1.04920151,66181.0,66180.0,0.454135]
[1728949479771,1.11615142,66181.0,66180.0,0.454135]
[1728949479989,1.04920151,66181.0,66180.0,0.454135]
[1728949481339,1.11615761,66181.0,66180.0,0.454135]
[1728949481826,1.11615761,66181.0,66180.0,0.4995485]
[1728949481827,0.66844131,66181.0,66180.0,0.4995485]
[1728949482265,0.61880415,66181.0,66180.0,0.4995485]
[1728949482944,0.60485971,66181.0,66180.0,0.4995485]
[1728949483164,0.6634681,66181.0,66180.0,0.4995485]
[1728949483386,0.61881901,66181.0,66180.0,0.4995485]
[1728949483611,0.61881901,66181.0,66180.0,0.454135]
[1728949484747,0.61381901,66181.0,66180.0,0.454135]
[1728949484973,0.61881901,66181.0,66180.0,0.454135]
[1728949485478,0.61381901,66181.0,66180.0,0.454135]
[1728949486557,0.61383638,66181.0,66180.0,0.454135]
[1728949486772,0.61383638,66181.0,66180.0,0.5213585]
[1728949487632,0.61383638,66181.0,66180.0,0.454135]
[1728949487891,0.55051264,66181.0,66180.0,0.454135]
[1728949489872,0.77565051,66181.0,66180.0,0.454135]
[1728949490098,0.78964996,66181.0,66180.0,0.454135]
[1728949490318,0.77565051,66181.0,66180.0,0.454135]
[1728949490560,0.78964991,66181.0,66180.0,0.454135]
[1728949491889,0.83433054,66181.0,66180.0,0.454135]
[1728949492124,0.78964991,66181.0,66180.0,0.454135]
[1728949492347,0.83432827,66181.0,66180.0,0.454135]
[1728949492785,0.78964991,66181.0,66180.0,0.454135]
[1728949493461,0.78967016,66181.0,66180.0,0.454135]
[1728949493683,0.8566438,66181.0,66180.0,0.454135]
[1728949494559,0.94894761,66181.0,66180.0,0.30303]
[1728949494781,0.93063957,66181.0,66180.0,0.30303]
[1728949495019,0.015,66170.0,66169.0,0.000825]
[1728949495242,0.015,66170.0,66162.0,0.000825]
[1728949495243,0.161141,66163.0,66162.0,0.000825]
[1728949495462,0.45668912,66163.0,66162.0,0.000825]
[1728949495708,0.63880664,66163.0,66162.0,0.000825]
[1728949496814,0.63878331,66163.0,66162.0,0.000825]
[1728949497073,0.251155,66157.0,66145.0,0.0833]
[1728949497324,0.251167,66152.0,66145.0,0.0833]